bitfinex/quotes_SOLUSD_20250901
["timestamp","ask_amount","ask_price","bid_price","bid_amount"]
[1756766897570,0.175001,195.12,195.09,41.4]
[1756766897776,0.175001,195.12,195.08,41.4]
[1756766898147,0.7,195.11,195.08,41.4]
[1756766898335,0.7,195.1,195.08,41.4]
[1756766898536,0.7,195.09,195.08,41.4]
[1756766899138,0.7,195.09,195.08,41.36]
[1756766900547,5.12537201,195.11,195.08,41.36]
[1756766900749,26.0,195.13,195.08,41.36]
[1756766900750,0.7,195.13,195.09,13.59559401]
[1756766900948,0.7,195.12,195.09,13.59559401]
[1756766901272,0.7,195.12,195.08,41.36]
[1756766901462,26.0,195.13,195.08,46.48607016]
[1756766901968,0.73,195.14,195.11,13.59559401]
[1756766901969,0.03,195.14,195.11,13.59559401]
[1756766902172,0.03,195.14,195.12,41.32]
[1756766902371,0.03,195.14,195.13,13.59559401]
[1756766902553,0.03,195.14,195.13,17.38092348]
[1756766902867,0.03,195.14,195.13,17.62092348]
[1756766903052,0.03,195.14,195.13,23.25819094]
[1756766903447,0.03,195.14,195.13,25.31194794]
[1756766903654,0.03,195.16,195.13,25.31194794]
[1756766903971,0.03,195.16,195.14,43.62092348]
[1756766904696,1e-08,195.15,195.14,43.62092348]
[1756766904982,1e-08,195.15,195.14,17.62092348]
[1756766905155,1e-08,195.15,195.14,22.74544946]
[1756766905366,1e-08,195.15,195.14,64.00544946]
[1756766905571,1e-08,195.15,195.14,63.74544946]
[1756766905973,1e-08,195.15,195.14,125.0177443]
[1756766907002,1e-08,195.15,195.14,118.94011999]
[1756766907151,1e-08,195.15,195.14,54.79559401]
[1756766907152,0.70000001,195.15,195.14,54.79559401]
[1756766907346,0.70000001,195.15,195.14,41.2]
[1756766909061,1e-08,195.15,195.14,41.2]
[1756766909261,1e-08,195.15,195.14,66.2177443]
[1756766910060,1e-08,195.15,195.14,125.2177443]
[1756766912351,1e-08,195.17,195.15,39.59559401]
[1756766912556,1e-08,195.17,195.16,61.6056184]
[1756766912754,1e-08,195.17,195.16,61.8456184]
[1756766913154,1e-08,195.17,195.16,61.6056184]
[1756766913666,1e-08,195.17,195.16,66.96961921]
[1756766914078,1e-08,195.17,195.16,68.78284921]
[1756766914377,1e-08,195.17,195.16,69.02284921]
[1756766914780,1e-08,195.17,195.16,68.78284921]
[1756766914964,1e-08,195.17,195.16,15.64882401]
[1756766915165,1e-08,195.17,195.16,63.34644832]
[1756766915369,1e-08,195.17,195.16,68.98284921]
[1756766915972,1e-08,195.17,195.16,20.77282482]
[1756766916177,1e-08,195.17,195.16,68.57044913]
[1756766916887,1e-08,195.17,195.16,69.32284921]
[1756766918308,1e-08,195.17,195.16,20.77282482]
[1756766918511,0.66000001,195.17,195.16,83.77721913]
[1756766918669,0.66000001,195.17,195.16,66.69721913]
[1756766919001,1e-08,195.17,195.16,66.69721913]
[1756766919374,1e-08,195.17,195.16,60.63959482]
[1756766921302,1e-08,195.17,195.16,62.69303582]
[1756766921594,1e-08,195.17,195.16,121.69303582]
[1756766922900,0.03,195.2,195.16,153.99066013]
[1756766923105,1e-08,195.2,195.19,45.65321832]
[1756766923288,1e-08,195.2,195.19,88.06553964]
[1756766923482,1e-08,195.2,195.19,88.30553964]
[1756766923687,1e-08,195.2,195.19,118.54833691]
[1756766923900,1e-08,195.2,195.19,118.03601559]
[1756766924380,0.66,195.33,195.27,26.0]
[1756766924579,0.66,195.33,195.32,19.65321832]
[1756766924775,0.76,195.36,195.33,13.59559401]
[1756766924976,0.76,195.36,195.34,42.28]
[1756766925196,0.1,195.36,195.34,42.28]
[1756766925385,0.1,195.36,195.34,48.33762431]
[1756766925776,0.1,195.36,195.35,24.77223546]
[1756766926279,0.76,195.36,195.35,114.83559401]
[1756766927609,0.76,195.36,195.27,26.0]
[1756766927904,0.1,195.36,195.35,13.59559401]
[1756766928284,0.76,195.36,195.35,42.2]
[1756766928487,5.87875511,195.36,195.35,42.2]
[1756766928683,5.87875511,195.36,195.34,42.2]
[1756766928885,0.66,195.35,195.34,42.2]
[1756766929493,26.0,195.33,195.27,15.390535]
[1756766929699,5.77998147,195.32,195.2,5.12295081]
[1756766929998,0.66,195.31,195.21,30.66]
[1756766930302,0.66,195.3,195.22,13.59559401]
[1756766930499,5.11998147,195.32,195.22,13.59559401]
[1756766930805,0.66,195.31,195.22,72.59559401]
[1756766931016,0.835001,195.3,195.22,77.71800269]
[1756766931211,0.66,195.29,195.22,77.71800269]
[1756766931391,0.66,195.29,195.22,83.775627]
[1756766931894,5.11989367,195.32,195.22,77.71800269]
[1756766932096,0.66,195.28,195.22,77.71800269]
[1756766932310,0.66,195.27,195.22,72.59559401]
[1756766932615,0.66,195.26,195.22,77.71800117]
[1756766932815,0.66,195.25,195.23,42.1]
[1756766933311,31.12030621,195.31,195.24,13.59559401]
[1756766933613,31.12030621,195.31,195.25,42.08]
[1756766934015,0.66,195.3,195.25,42.08]
[1756766934192,0.66,195.29,195.25,42.08]
[1756766934392,0.66,195.28,195.25,42.08]
[1756766934700,0.66,195.27,195.25,42.08]
[1756766934898,31.12030621,195.31,195.2,0.12]
[1756766934899,0.66,195.26,195.2,0.12]
[1756766935097,5.12163892,195.25,195.21,42.06]
[1756766935301,0.66,195.24,195.22,13.59559401]
[1756766935505,0.66,195.23,195.22,13.59559401]
[1756766936505,0.66,195.23,195.21,42.06]
[1756766936697,0.66,195.22,195.21,55.65559401]
[1756766940211,0.66,195.22,195.21,42.06]
[1756766940212,5.78242598,195.22,195.21,42.06]
[1756766940588,0.66,195.22,195.2,0.12]
[1756766940792,0.66,195.21,195.2,0.12]
[1756766941205,5.78268838,195.21,195.2,0.12]
[1756766941902,5.78268838,195.21,195.18,0.12]
[1756766941903,26.0,195.19,195.18,0.12]
[1756766942421,26.66,195.19,195.18,0.12]
[1756766943907,0.66,195.19,195.18,0.12]
[1756766944104,0.66,195.22,195.18,0.12]
[1756766944298,0.66,195.21,195.18,0.12]
[1756766945018,0.66,195.2,195.18,0.12]
[1756766945439,0.68,195.19,195.18,0.12]
[1756766947324,5.80321327,195.19,195.18,0.12]
[1756766947938,0.68,195.19,195.18,0.12]
[1756766950220,0.03,195.2,195.18,5.24346786]
[1756766950414,0.03,195.2,195.19,55.41559401]
[1756766950615,0.03,195.2,195.19,55.77559401]
[1756766951312,0.03,195.2,195.19,60.89880728]
[1756766951508,0.03,195.2,195.19,66.95643159]
[1756766951932,0.03,195.22,195.21,39.59559401]
[1756766952228,0.03,195.22,195.21,45.65321832]
[1756766952436,0.03,195.22,195.21,46.01321832]
[1756766953029,0.03,195.22,195.21,105.01321832]
[1756766953430,0.03,195.22,195.21,110.1359067]
[1756766954033,0.03,195.22,195.21,151.9759067]
[1756766954246,0.03,195.22,195.21,77.71828239]
[1756766954451,0.03,195.22,195.21,114.43559401]
[1756766954629,0.03,195.22,195.21,55.43559401]
[1756766955444,0.03,195.22,195.21,60.55828239]
[1756766962331,0.71,195.22,195.21,55.43559401]
[1756766962541,0.03,195.22,195.21,55.43559401]
[1756766963046,0.03,195.22,195.21,13.59559401]
[1756766963225,0.03,195.22,195.21,55.19559401]
[1756766963827,0.03,195.22,195.21,60.31828239]
[1756766964523,0.71,195.22,195.18,59.12]
[1756766964729,0.68,195.21,195.2,13.59559401]
[1756766966028,0.68,195.21,195.19,41.56]
[1756766966228,0.68,195.2,195.19,41.56]
[1756766966640,5.1524311,195.22,195.19,41.56]
[1756766966959,0.855001,195.21,195.18,0.12]
[1756766967162,31.80278261,195.21,195.18,41.64]
[1756766967346,0.68,195.2,195.18,41.64]
[1756766967546,0.68,195.19,195.18,41.64]
[1756766967748,0.68,195.19,195.18,0.12]
[1756766969252,5.80321327,195.19,195.18,0.12]
[1756766971975,26.0,195.17,195.16,0.12]
[1756766972300,0.68,195.18,195.16,0.12]
[1756766972452,0.68,195.17,195.16,0.12]
[1756766974159,5.80373827,195.17,195.16,0.12]
[1756766974956,26.0,195.2,195.16,0.48]
[1756766975271,0.03,195.22,195.17,54.97559401]
[1756766975467,0.03,195.22,195.19,13.59559401]
[1756766976179,0.03,195.22,195.21,18.71828239]
[1756766976391,0.03,195.22,195.21,60.25828239]
[1756766976575,0.03,195.22,195.21,60.61828239]
[1756766976883,0.03,195.22,195.21,55.13559401]
[1756766977788,0.03,195.22,195.21,114.13559401]
[1756766978079,0.03,195.22,195.21,55.13559401]
[1756766978398,0.03,195.22,195.21,55.49559401]
[1756766978591,0.03,195.22,195.21,60.25828239]
[1756766979859,0.73,195.22,195.17,41.46]
[1756766980060,0.7,195.21,195.17,41.46]
[1756766980293,0.7,195.2,195.17,41.46]
[1756766980804,0.03,195.22,195.17,41.46]
[1756766980995,0.7,195.19,195.17,41.46]
[1756766981307,5.12278632,195.21,195.17,41.46]
[1756766981308,5.82278632,195.21,195.17,41.46]
[1756766981477,0.7,195.2,195.17,41.46]
[1756766983162,0.7,195.19,195.17,41.46]
[1756766983587,0.7,195.18,195.16,0.12]
[1756766986275,5.12329054,195.19,195.16,0.12]
[1756766986479,0.7,195.17,195.16,0.12]
[1756766987205,5.82373827,195.17,195.16,0.12]
[1756766988896,0.7,195.17,195.16,0.12]
[1756766989090,5.82373827,195.17,195.16,0.12]
[1756766989291,0.7,195.17,195.16,0.12]
[1756766989892,0.03,195.18,195.16,0.48]
[1756766990104,0.03,195.18,195.17,55.27559401]
[1756766990486,0.03,195.18,195.17,54.91559401]
[1756766993002,0.03,195.18,195.17,113.91559401]
[1756766993602,0.03,195.18,195.17,54.91559401]
[1756766997725,0.73,195.18,195.17,41.16]
[1756766999732,5.85347576,195.18,195.17,41.16]
[1756767000028,5.85347576,195.18,195.16,0.12]
[1756767000220,0.7,195.17,195.14,0.12]
[1756767000410,26.0,195.15,195.14,0.12]
[1756767000622,0.7,195.17,195.14,0.12]
[1756767000817,5.32847676,195.18,195.14,0.12]
[1756767001015,5.82380177,195.17,195.14,0.12]
[1756767002031,0.03,195.18,195.14,0.12]
[1756767002348,26.0,195.17,195.14,0.12]
[1756767002530,0.73,195.18,195.14,0.12]
[1756767002531,26.73,195.18,195.14,0.12]
[1756767002712,26.0,195.17,195.14,0.12]
[1756767002914,0.73,195.18,195.14,0.12]
[1756767003533,0.7,195.17,195.14,0.12]
[1756767004139,0.7,195.16,195.14,0.12]
[1756767004317,0.7,195.15,195.14,0.12]
[1756767005418,5.87377806,195.17,195.14,0.12]
[1756767005727,5.15377806,195.17,195.14,0.12]
[1756767006133,0.72,195.16,195.14,0.12]
[1756767006341,0.03,195.17,195.14,0.12]
[1756767007224,0.03,195.17,195.15,0.48]
[1756767007425,0.03,195.17,195.16,54.71559401]
[1756767007629,0.03,195.17,195.16,58.50288969]
[1756767007833,0.03,195.17,195.16,61.03633069]
[1756767009339,0.03,195.17,195.16,66.1603315]
[1756767010243,0.03,195.17,195.16,62.37303582]
[1756767010541,0.03,195.17,195.16,121.37303582]
[1756767010728,0.03,195.17,195.16,125.1603315]
[1756767012566,0.03,195.19,195.18,26.0]
[1756767012766,0.03,195.2,195.19,13.59559401]
[1756767013053,0.03,195.2,195.19,17.86288969]
[1756767013349,0.03,195.2,195.19,61.03590869]
[1756767013530,0.03,195.2,195.19,66.15912196]
[1756767013949,0.03,195.2,195.19,62.37182628]
[1756767014637,0.03,195.2,195.19,66.15912196]
[1756767016754,0.03,195.2,195.19,125.15912196]
[1756767018665,0.03,195.2,195.19,120.89182628]
[1756767019330,0.03,195.2,195.19,121.37182628]
[1756767019534,0.03,195.2,195.19,120.89182628]
[1756767022540,0.03,195.2,195.19,125.15912196]
[1756767024167,0.03,195.22,195.21,39.59559401]
[1756767024344,0.03,195.22,195.21,84.48288969]
[1756767024535,0.03,195.24,195.22,13.59559401]
[1756767024748,0.03,195.24,195.23,58.99510605]
[1756767025040,0.03,195.24,195.23,59.47510605]
[1756767025249,0.03,195.24,195.23,59.81775761]
[1756767027253,0.03,195.24,195.23,118.81775761]
[1756767027569,0.75,195.24,195.23,72.59559401]
[1756767027756,0.75,195.24,195.23,41.1]
[1756767030966,0.75,195.24,195.23,54.69559401]
[1756767030967,0.03,195.24,195.23,54.69559401]
[1756767031459,0.03,195.24,195.23,59.81775761]
[1756767031662,0.03,195.24,195.23,63.60505329]
[1756767031969,0.03,195.24,195.23,79.48032729]
[1756767032279,0.03,195.26,195.25,13.59559401]
[1756767032447,0.03,195.26,195.25,58.48288969]
[1756767032648,0.03,195.26,195.25,58.96288969]
[1756767032850,0.03,195.26,195.25,59.47505358]
[1756767033045,0.03,195.26,195.25,14.5877579]
[1756767033246,0.03,195.26,195.25,59.47505358]
[1756767033563,0.03,195.26,195.25,64.5966925]
[1756767034564,1e-08,195.26,195.25,64.5966925]
[1756767035157,1e-08,195.26,195.25,123.5966925]
[1756767035356,1e-08,195.26,195.25,128.20251461]
[1756767035974,1e-08,195.26,195.25,128.18251461]
[1756767036362,0.66,195.37,195.33,13.59559401]
[1756767036560,0.175001,195.47,195.34,41.08]
[1756767036561,0.66,195.36,195.34,41.08]
[1756767036873,26.0,195.4,195.35,41.08]
[1756767037070,0.175001,195.39,195.35,41.08]
[1756767037273,0.66,195.38,195.35,41.08]
[1756767037472,0.835001,195.37,195.36,41.08]
[1756767037650,5.77849311,195.37,195.36,41.08]
[1756767039671,0.66,195.37,195.36,41.08]
[1756767041876,0.66,195.37,195.31,5.12006553]
[1756767042075,0.66,195.36,195.33,13.59559401]
[1756767042280,0.66,195.35,195.33,13.59559401]
[1756767042464,0.66,195.34,195.3,13.59559401]
[1756767042771,5.29323213,195.38,195.31,41.08]
[1756767043181,26.0,195.35,195.28,13.59559401]
[1756767043392,0.175001,195.34,195.29,41.06]
[1756767043573,0.66,195.33,195.3,41.06]
[1756767043769,0.835001,195.32,195.3,41.06]
[1756767043970,5.78006553,195.31,195.3,41.06]
[1756767044357,5.78006553,195.31,195.24,0.12]
[1756767044680,0.175001,195.3,195.24,0.12]
[1756767044981,0.66,195.29,195.25,41.06]
[1756767045178,0.835001,195.28,195.25,41.06]
[1756767045481,0.66,195.27,195.25,41.06]
[1756767045780,0.66,195.26,195.25,41.06]
[1756767045961,0.66,195.29,195.26,13.59559401]
[1756767046162,0.66,195.28,195.25,41.06]
[1756767046371,0.66,195.27,195.25,41.06]
[1756767046766,0.66,195.32,195.26,13.59559401]
[1756767047166,31.77932365,195.34,195.26,17.38288969]
[1756767047400,31.77932365,195.34,195.26,17.86288969]
[1756767047585,31.77932365,195.34,195.26,14.07559401]
[1756767047883,0.66,195.34,195.27,5.12111435]
[1756767048267,0.66,195.33,195.27,5.12111435]
[1756767048473,0.66,195.32,195.29,13.59559401]
[1756767048666,0.66,195.31,195.29,13.59559401]
[1756767050670,5.11963187,195.33,195.27,5.12094202]
[1756767050978,0.66,195.3,195.29,13.59559401]
[1756767051173,4.77963187,195.33,195.29,13.59559401]
[1756767051375,0.175001,195.35,195.29,13.59559401]
[1756767051785,0.175001,195.35,195.3,41.06]
[1756767052176,5.29406472,195.35,195.26,18.71694286]
[1756767052377,5.29406472,195.35,195.28,13.59559401]
[1756767052971,18.09160759,195.35,195.28,13.59559401]
[1756767053283,0.66,195.34,195.28,13.59559401]
[1756767053485,0.835001,195.33,195.28,13.59559401]
[1756767053657,0.66,195.32,195.28,13.59559401]
[1756767053864,0.66,195.31,195.28,13.59559401]
[1756767054183,0.175001,195.33,195.28,41.06]
[1756767054184,0.66,195.3,195.28,41.06]
[1756767054490,31.29480439,195.32,195.28,41.06]
[1756767054792,0.835001,195.34,195.28,0.67]
[1756767055088,26.0,195.33,195.29,41.06]
[1756767055293,26.0,195.33,195.29,41.73]
[1756767055972,26.66,195.33,195.29,41.06]
[1756767056369,31.77960691,195.33,195.29,41.06]
[1756767057892,5.77980971,195.32,195.29,41.06]
[1756767058793,5.77980971,195.32,195.28,13.59559401]
[1756767058968,5.77980971,195.32,195.29,41.06]
[1756767059474,5.77980971,195.32,195.28,13.59559401]
[1756767059681,5.77980971,195.32,195.29,41.06]
[1756767060572,5.11980971,195.32,195.24,9.02913486]
[1756767060773,0.66,195.31,195.26,13.59559401]
[1756767061091,31.95460314,195.33,195.28,13.59559401]
[1756767061390,0.66,195.32,195.29,41.06]
[1756767061980,5.77999209,195.32,195.29,41.06]
[1756767062305,5.77990719,195.32,195.29,41.06]
[1756767062508,0.66,195.31,195.26,0.12]
[1756767062707,0.175001,195.31,195.29,41.06]
[1756767063002,0.66,195.3,195.29,41.06]
[1756767063207,0.66,195.3,195.28,41.06]
[1756767063502,0.66,195.29,195.28,41.06]
[1756767064304,5.78058989,195.29,195.28,41.06]
[1756767064970,5.81058989,195.29,195.26,41.16]
[1756767065170,0.865001,195.28,195.26,41.16]
[1756767065370,0.69,195.27,195.26,41.16]
[1756767065606,26.69,195.27,195.26,0.12]
[1756767066212,31.81111435,195.27,195.26,0.12]
[1756767068623,31.29506653,195.31,195.26,41.87]
[1756767068826,5.29506653,195.31,195.26,41.87]
[1756767069005,31.29506653,195.31,195.27,0.71]
[1756767069625,0.69,195.3,195.26,41.16]
[1756767069798,0.69,195.3,195.26,0.12]
[1756767070218,26.175001,195.31,195.27,0.71]
[1756767070431,26.0,195.31,195.26,46.28134599]
[1756767070737,0.175001,195.33,195.28,0.71]
[1756767070938,0.175001,195.33,195.29,0.71]
[1756767072039,5.29456841,195.33,195.29,0.71]
[1756767072545,5.98456841,195.33,195.29,0.71]
[1756767072741,5.98456841,195.33,195.27,14.30559401]
[1756767073555,26.0,195.3,195.26,41.16]
[1756767073839,0.865001,195.29,195.26,41.16]
[1756767074043,0.69,195.28,195.26,41.16]
[1756767074447,26.175001,195.29,195.26,41.16]
[1756767074840,26.865001,195.29,195.26,41.16]
[1756767075744,31.98579117,195.29,195.26,41.16]
[1756767076450,31.98579117,195.29,195.26,0.12]
[1756767078042,133.8,195.32,195.27,0.71]
[1756767078227,133.8,195.32,195.28,0.71]
[1756767078637,133.8,195.32,195.26,18.83696315]
[1756767078837,133.8,195.32,195.27,0.71]
[1756767079328,0.03,195.34,195.28,17.38288969]
[1756767079540,0.03,195.34,195.3,13.59559401]
[1756767080041,0.03,195.34,195.31,0.71]
[1756767081542,0.03,195.34,195.32,0.71]
[1756767081863,0.03,195.34,195.33,41.02]
[1756767082167,0.03,195.34,195.33,60.44513529]
[1756767083236,0.03,195.34,195.33,55.32559401]
[1756767083435,0.03,195.34,195.33,60.44513529]
[1756767083655,0.03,195.34,195.33,55.32559401]
[1756767083864,0.03,195.34,195.33,54.61559401]
[1756767084037,0.03,195.34,195.33,60.44513529]
[1756767084453,0.03,195.34,195.33,54.61559401]
[1756767084633,0.03,195.34,195.33,13.59559401]
[1756767084833,0.03,195.34,195.33,54.61559401]
[1756767086648,0.03,195.34,195.33,55.32559401]
[1756767086847,0.03,195.34,195.33,54.61559401]
[1756767087148,0.03,195.34,195.33,55.32559401]
[1756767087972,0.03,195.34,195.33,60.44513529]
[1756767088344,0.03,195.34,195.33,55.32559401]
[1756767088561,0.03,195.34,195.33,60.44513529]
[1756767088945,0.03,195.34,195.32,13.59559401]
[1756767089146,0.03,195.34,195.33,54.59559401]
[1756767090844,0.03,195.34,195.33,41.0]
[1756767091042,0.03,195.34,195.33,64.21243097]
[1756767091345,0.03,195.35,195.33,64.21243097]
[1756767091346,0.03,195.35,195.34,13.59559401]
[1756767091536,0.03,195.36,195.34,18.09288969]
[1756767091745,0.03,195.37,195.36,13.59559401]
[1756767091945,1e-08,195.37,195.36,17.38288969]
[1756767092146,0.175001,195.5,195.36,82.72352031]
[1756767092349,5.80406377,195.54,195.46,3.78729568]
[1756767092566,0.865001,195.53,195.48,13.59559401]
[1756767092760,0.69,195.52,195.49,41.0]
[1756767093068,0.69,195.51,195.49,41.0]
[1756767093367,0.69,195.5,195.49,41.0]
[1756767094651,5.80508951,195.5,195.49,41.0]
[1756767095854,5.80508951,195.5,195.43,13.59559401]
[1756767096054,0.72,195.49,195.45,13.59559401]
[1756767096253,0.72,195.48,195.45,13.59559401]
[1756767096456,5.29009051,195.5,195.45,13.59559401]
[1756767096652,5.11508951,195.5,195.46,40.98]
[1756767096851,0.72,195.49,195.46,40.98]
[1756767097860,5.83559449,195.49,195.46,40.98]
[1756767098981,0.03,195.48,195.46,40.98]
[1756767100650,0.03,195.48,195.44,13.59559401]
[1756767100977,0.72,195.47,195.45,40.96]
[1756767101768,0.72,195.47,195.42,14.25559401]
[1756767102072,0.72,195.47,195.44,13.59559401]
[1756767102654,0.03,195.48,195.38,13.59559401]
[1756767102655,5.11665984,195.44,195.38,13.59559401]
[1756767102869,5.29166084,195.44,195.39,40.96]
[1756767103183,5.83665984,195.44,195.39,40.96]
[1756767103374,5.11665984,195.44,195.4,0.66]
[1756767104279,31.11642162,195.45,195.41,0.66]
[1756767104583,5.11613822,195.46,195.43,13.59559401]
[1756767104786,5.11587455,195.47,195.43,13.59559401]
[1756767104957,5.83587455,195.47,195.43,13.59559401]
[1756767106203,0.72,195.47,195.43,13.59559401]
[1756767106360,0.03,195.48,195.44,0.66]
[1756767106565,0.03,195.48,195.45,41.6]
[1756767107476,0.72,195.47,195.4,0.66]
[1756767107674,0.72,195.47,195.42,13.59559401]
[1756767107877,0.72,195.47,195.42,14.25559401]
[1756767108252,26.72,195.46,195.43,40.94]
[1756767108457,0.72,195.45,195.43,40.94]
[1756767108883,26.0,195.46,195.43,40.94]
[1756767109467,26.72,195.46,195.43,40.94]
[1756767109984,31.83619623,195.46,195.43,40.94]
[1756767110187,5.11608429,195.47,195.43,41.6]
[1756767110690,5.11608429,195.47,195.44,0.66]
[1756767110861,0.03,195.48,195.45,13.59559401]
[1756767111062,0.03,195.48,195.46,40.94]
[1756767111668,0.03,195.48,195.47,13.59559401]
[1756767112590,0.03,195.48,195.47,14.25559401]
[1756767114094,0.03,195.48,195.47,19.37146856]
[1756767114495,0.03,195.48,195.47,14.25559401]
[1756767114680,0.03,195.48,195.47,55.19559401]
[1756767114877,0.03,195.48,195.47,60.31146856]
[1756767118089,0.03,195.48,195.47,55.19559401]
[1756767118795,0.03,195.48,195.47,72.59559401]
[1756767119094,0.03,195.48,195.47,54.51559401]
[1756767120171,0.03,195.48,195.45,0.66]
[1756767120690,0.03,195.48,195.46,40.92]
[1756767120879,0.03,195.48,195.46,41.58]
[1756767121272,0.03,195.48,195.46,40.92]
[1756767121474,0.75,195.48,195.46,40.92]
[1756767122492,5.14567642,195.48,195.42,59.0]
[1756767122698,0.72,195.47,195.43,54.49559401]
[1756767122892,5.14567642,195.48,195.43,54.49559401]
[1756767123094,5.86567642,195.48,195.43,55.15559401]
[1756767123497,0.72,195.47,195.43,54.49559401]
[1756767124297,0.72,195.47,195.44,40.9]
[1756767124498,5.14563308,195.48,195.43,14.25559401]
[1756767124681,0.72,195.47,195.45,40.9]
[1756767127409,5.83589509,195.47,195.45,40.9]
[1756767127596,0.72,195.47,195.43,13.59559401]
[1756767127796,0.72,195.47,195.44,40.9]
[1756767128008,0.03,195.48,195.45,40.9]
[1756767128307,0.03,195.48,195.46,40.9]
[1756767128487,0.03,195.48,195.47,40.9]
[1756767128996,5.14561285,195.48,195.47,40.9]
[1756767129195,0.03,195.48,195.47,40.9]
[1756767129912,0.7,195.48,195.47,40.9]
[1756767130119,0.03,195.48,195.47,41.6]
[1756767130306,0.03,195.48,195.47,55.19559401]
[1756767131218,0.03,195.48,195.47,54.49559401]
[1756767132010,0.03,195.48,195.47,13.59559401]
[1756767132213,0.03,195.48,195.47,54.47559401]
[1756767132404,0.03,195.48,195.47,61.21771324]
[1756767132720,0.03,195.48,195.47,30.56850979]
[1756767133009,0.03,195.48,195.47,71.44850979]
[1756767133220,0.03,195.48,195.47,18.71051601]
[1756767133387,0.03,195.48,195.47,54.47559401]
[1756767134591,0.03,195.48,195.47,55.17559401]
[1756767134791,0.03,195.48,195.47,60.29146856]
[1756767134986,0.03,195.5,195.49,26.0]
[1756767135237,0.03,195.5,195.49,60.51771324]
[1756767135388,0.03,195.5,195.49,125.68354135]
[1756767135588,0.03,195.5,195.49,125.17200624]
[1756767136019,1e-08,195.5,195.49,130.2873574]
[1756767136317,1e-08,195.5,195.49,78.24988701]
[1756767136489,1e-08,195.5,195.49,119.12988701]
[1756767136806,1e-08,195.5,195.49,130.2873574]
[1756767139102,1e-08,195.5,195.49,89.4073574]
[1756767139308,1e-08,195.5,195.49,130.2873574]
[1756767140207,1e-08,195.5,195.49,83.36523817]
[1756767140410,1e-08,195.5,195.49,130.2873574]
[1756767140613,1e-08,195.5,195.49,125.3330644]
[1756767141616,1e-08,195.5,195.49,119.29094517]
[1756767142118,1e-08,195.5,195.49,118.59094517]
[1756767142317,1e-08,195.5,195.49,72.59559401]
[1756767142518,0.67000001,195.5,195.49,54.47559401]
[1756767142715,1e-08,195.5,195.49,54.47559401]
[1756767143518,1e-08,195.5,195.49,13.59559401]
[1756767143816,0.67000001,195.5,195.49,54.45559401]
[1756767144211,0.67000001,195.5,195.44,5.11653186]
[1756767144523,0.67,195.49,195.45,54.45559401]
[1756767145192,0.67,195.49,195.47,13.59559401]
[1756767145388,0.67,195.49,195.48,40.86]
[1756767146602,26.67,195.49,195.44,13.59559401]
[1756767146806,1e-08,195.5,195.46,13.59559401]
[1756767147000,1e-08,195.5,195.47,40.86]
[1756767147214,0.67,195.49,195.47,40.86]
[1756767148417,1e-08,195.5,195.48,14.29559401]
[1756767148734,1e-08,195.5,195.49,54.45559401]
[1756767149598,1e-08,195.5,195.49,72.59559401]
[1756767149804,0.67000001,195.5,195.49,113.45559401]
[1756767150420,0.67000001,195.5,195.49,54.45559401]